Cogmind - Beta 12 @@@ ROGUE MODE // 2023.03.07 @ 17:49:27 Player: Delirus Result: Destroyed by G-47 Trooper with Particle Gun Performance ------------- Evolutions (3) 1500 Regions Visited (5) 1000 Robots Destroyed (119) 595 Value Destroyed (4129) 4129 Prototype IDs (2) 40 Alien Tech Used (0) 0 Bonus (332) 332 TOTAL SCORE: 7596 Bonus ------- High Alert Combat Kills 216 Follower Combat Kills 116 Cogmind --------- Core Integrity 0/700 Matter 85/300 Energy 100/100 System Corruption 10% Temperature Cool (19) Movement Flying (40) Location -7/Factory Parts ------- > --- POWER (1) -------- (None) > --- PROPULSION (4) --- Xenon Bombardment Thruster > --- UTILITY (6) ------ (None) > --- WEAPON (2) ------- (None) > --- INVENTORY (5) ---- Improved Heat Sink Improved Terrain Scanner Seismic Detector Heavy Assault Cannon Peak State ------------ > --- POWER ------------ Improved Deuterium Engine > --- PROPULSION ------- Advanced Treads Medium Treads Medium Treads Armored Wheel > --- UTILITY ---------- Huge Storage Unit Advanced Targeting Computer Matter Filter Medium Reactive Plating Improved Shield Generator Hacking Suite > --- WEAPON ----------- Heavy Assault Cannon > --- INVENTORY -------- Improved Ion Engine Micro Nuclear Core Improved Treads Advanced Treads Wheel Compact Wheel Improved Heat Sink Improved Heat Sink High-capacity Battery High-capacity Matter Pod Advanced Visual Processing Unit Improved Terrain Scanner Improved Terrain Scan Processor Seismic Detector Weapon Cycler Hardened Medium Armor Plating Improved Shield Generator Long-range Tractor Beam Gauss Rifle Heavy Assault Cannon Heavy Missile Launcher Power Maul [Rating: 48] Favorites ----------- Power Light Nuclear Core Engine Ion Engine Power Core Light Nuclear Core Propulsion Improved Treads Treads Improved Treads Leg Aluminum Leg Wheel Compact Wheel Flight Unit Xenon Bombardment Thruster Utility Huge Storage Unit Device Improved Heat Sink Storage Huge Storage Unit Processor Advanced Targeting Computer Hackware Hacking Suite Protection Light Armor Plating Weapon Heavy Assault Cannon Energy Gun Beamcaster Energy Cannon Particle Cannon Ballistic Gun Light Assault Rifle Ballistic Cannon Heavy Assault Cannon Launcher Grenade Launcher Special Weapon Plasma Cutter Build | -11 -10 -10 -9 -8 -7 ------- Run | Jun Mat Min Mat Mat Fac Slots Evolved 6 | . . . 2 2 2 Power . | . . . . . . Propulsion 2 | . . . 1 1 . Utility 4 | . . . 1 1 2 Weapon . | . . . . . . Parts Attached 110 | 2 8 3 28 14 55 Power 8 | . 2 . 2 1 3 Engine 5 | . 2 . 1 . 2 Core 3 | . . . 1 1 1 Reactor . | . . . . . . Propulsion 24 | 2 2 . 7 3 10 Treads 18 | 1 1 . 6 2 8 Leg . | . . . . . . Wheel 5 | 1 1 . 1 1 1 Hover . | . . . . . . Flight 1 | . . . . . 1 Utility 65 | . 2 2 12 10 39 Device 37 | . 1 2 6 4 24 Storage 2 | . 1 . . . 1 Processor 2 | . . . . 2 . Hackware 5 | . . . . . 5 Protection 19 | . . . 6 4 9 Artifact . | . . . . . . Weapon 13 | . 2 1 7 . 3 Energy Gun 1 | . . . 1 . . Energy Cannon 3 | . 1 . 2 . . Ballistic Gun 2 | . . 1 1 . . Ballistic Cannon 3 | . . . 1 . 2 Launcher 2 | . 1 . . . 1 Special Weapon 2 | . . . 2 . . Impact Weapon . | . . . . . . Slashing Weapon . | . . . . . . Piercing Weapon . | . . . . . . Special Melee Weapon . | . . . . . . Unidentified Prototypes . | . . . . . . Parts Lost 23 | . 1 . 3 1 18 Power 3 | . . . . 1 2 Propulsion 7 | . 1 . 1 . 5 Utility 9 | . . . 1 . 8 Weapon 4 | . . . 1 . 3 Highest Loss Streak 5 | . 1 . 2 1 5 To Critical Strikes . | . . . . . . Average Slot Usage (%) 92 | . 98 100 95 89 87 Engine 6 | . 14 14 4 . 4 Core 3 | . . . 6 8 2 Treads 20 | . 14 14 22 26 21 Wheel 9 | . 13 14 9 9 6 Device 14 | . 12 14 16 12 14 Storage 9 | . 14 14 11 9 6 Processor 3 | . . . . 8 6 Hackware 1 | . . . . . 3 Protection 5 | . . . 5 5 10 Energy Gun 1 | . 2 . 2 . . Energy Cannon 4 | . 11 14 3 . . Ballistic Gun 4 | . 14 7 5 . . Ballistic Cannon 4 | . . . 3 9 6 Naked Turns 104 | . . . . . 104 Heaviest Build 137 | 11 93 93 105 105 137 Greatest Support 66 | 20 16 16 66 16 12 Greatest Overweight (x) 11 | . 5 5 6 8 11 Average Overweight (x) 5 | . 2 5 5 7 7 Largest Inventory Capacity 25 | 8 25 25 25 25 25 Average Capacity 23 | 8 19 25 25 25 24 Most Carried 25 | 6 19 23 25 25 25 Average Carried 21 | 6 11 21 24 24 22 Final Capacity 25 | 8 25 25 25 25 5 Final Carried 25 | 6 19 23 25 24 5 Class Distribution -------------------- 81% | Mutant 13% | Scavenger-Mutant 4% | Hacker-Mutant Dominant Class ---------------- Mutant | -10/Materials Mutant | -10/Mines Scavenger-Mutant | -9/Materials Mutant | -8/Materials Mutant | -7/Factory Resources | -11 -10 -10 -9 -8 -7 ----------- Run | Jun Mat Min Mat Mat Fac Matter Collected 3201 | 203 323 82 519 561 1513 Remotely 417 | . . . . . 417 Salvage Created 3584 | 13 343 132 1210 832 1054 Parts 230 | 3 28 11 81 37 70 Haulers Intercepted 1 | . 1 . . . . Recyclers Shooed 5 | . . 1 2 1 1 Parts Field Recycled . | . . . . . . Retrieved Matter . | . . . . . . Parts Self-Destructed . | . . . . . . Prevented . | . . . . . . Kills | -11 -10 -10 -9 -8 -7 ------- Run | Jun Mat Min Mat Mat Fac Combat Hostiles Destroyed 97 | . 10 6 25 21 35 Guns 20 | . 4 1 15 . . Cannons 70 | . 5 1 10 21 33 AOE 6 | . 1 3 . . 2 Classes Destroyed 16 | 1 5 1 4 2 3 Worker 6 | . 1 . . 1 4 Builder 4 | . . . . . 4 Tunneler 1 | 1 . . . . . Hauler 1 | . 1 . . . . Recycler 4 | . . . 1 . 3 Mechanic 1 | . . 1 . . . Operator 2 | . . . 1 1 . Watcher 3 | . 1 . 1 1 . Swarmer 21 | . 6 3 . . 12 Grunt 48 | . 4 3 15 13 13 Duelist 3 | . . . 2 1 . Sentry 13 | . . . 8 4 1 Specialist 2 | . . . . 2 . Hunter 4 | . . . . 1 3 Programmer 5 | . . . . . 5 Heavy 1 | . . . . . 1 Best Kill Streak 9 | 1 3 4 3 9 8 Combat Bots Only 8 | . 3 3 3 8 5 Max Kills in Single Turn 4 | 1 1 3 1 2 4 Gunslinging . | . . . . . . Exploded 2 | . 1 2 . . 2 Melee . | . . . . . . Uniques/NPCs Destroyed . | . . . . . . Combat | -11 -10 -10 -9 -8 -7 -------- Run | Jun Mat Min Mat Mat Fac Damage Taken 5748 | . 388 74 900 943 3443 Core 996 | . 82 34 88 85 707 Absorbed by Shields 451 | . . . . . 451 Regen/Repaired (Parts) 194 | . . . . . 194 Core Remaining (%) 78 | 100 . 53 78 84 . Volleys Fired 323 | 3 38 10 66 54 152 Largest 2 | 2 2 2 2 1 1 Hottest 98 | 60 88 98 98 60 60 Shots Fired 429 | 6 76 17 120 54 156 Gun 127 | 6 46 4 71 . . Cannon 292 | . 30 10 43 54 155 Launcher 4 | . . 3 . . 1 Special 6 | . . . 6 . . Kinetic 317 | 3 38 4 63 54 155 Thermal 97 | . 30 10 57 . . Explosive 4 | . . 3 . . 1 Electromagnetic 11 | 3 8 . . . . Robot Hit Streak 14 | 3 5 5 12 14 11 Robot Miss Streak 5 | 1 3 2 4 5 4 Penetration Max 1 | . . . . 1 1 Secondary Targets 1 | . 1 . . . . Max Gunslinging Chain 1 | . 1 . . . . Shots Hit Robots 277 | 3 36 10 80 44 104 Core Hits 137 | 2 20 12 35 24 44 Critical Kills 1 | . . 1 . . . Critical Parts Destroyed . | . . . . . . Critical Strikes 24 | . 1 1 1 7 14 Meltdown 1 | . . 1 . . . Blast 22 | . . . 1 7 14 Corrupt 1 | . 1 . . . . Melee Attacks . | . . . . . . Impact . | . . . . . . Slashing . | . . . . . . Piercing . | . . . . . . Sneak Attacks . | . . . . . . Combat Hostiles . | . . . . . . Follow-up Attacks . | . . . . . . Damage Inflicted 12084 | 42 747 475 1896 2670 6254 Guns 1153 | 42 207 22 882 . . Cannons 9863 | . 484 129 1004 2651 5595 Explosions 990 | . 56 324 . . 610 Melee . | . . . . . . Ramming 68 | . . . . 19 49 Kinetic 9385 | 12 139 22 966 2651 5595 Thermal 1599 | . 540 129 930 . . Explosive 934 | . . 324 . . 610 Electromagnetic 98 | 30 68 . . . . Impact . | . . . . . . Slashing . | . . . . . . Piercing . | . . . . . . Highest Corruption 14 | . . . 4 . 14 Average Corruption 12 | . . . 3 . 12 Corruption Purged 5 | . . . . . 5 Corruption Blocked . | . . . . . . Effects 128 | . . . 1 . 127 Message Errors 43 | . . . . . 43 Matter Fused 24 | . . . . . 24 Heat Flow Errors 16 | . . . . . 16 Energy Discharges 9 | . . . . . 9 Parts Rejected 3 | . . . . . 3 Data Loss (minor) 13 | . . . 1 . 12 Data Loss (major) 5 | . . . . . 5 Misfires 6 | . . . . . 6 Alerts 5 | . . . . . 5 Misdirections 2 | . . . . . 2 Weapon Failures 2 | . . . . . 2 Overload Shots . | . . . . . . Overflow Damage 699 | . 21 . 14 121 543 Projectiles 648 | . 21 . 14 121 492 Explosions 51 | . . . . . 51 Melee . | . . . . . . Knockbacks 37 | . . . 1 5 31 Impact . | . . . . . . Kinetic 37 | . . . 1 5 31 Secondary . | . . . . . . Self-Inflicted Damage 109 | . . 27 . 9 73 Shots 2 | . . 1 . . 1 Rammed 9 | . . . . 2 7 Targets Rammed 9 | . . . . 2 7 Kicked . | . . . . . . Crushed . | . . . . . . Highest Temperature 322 | 20 118 112 32 22 322 Average Temperature 67 | 15 46 40 14 7 85 Received Heat Transfer 1695 | . 108 27 327 414 819 Effects 2 | . . . . . 2 Energy Bleed 2 | . . . . . 2 Siege Activations . | . . . . . . Robots Corrupted . | . . . . . . Combat Hostiles . | . . . . . . Parts Fried . | . . . . . . Impact Corruptions . | . . . . . . Robots Melted 1 | . . 1 . . . Combat Hostiles 1 | . . 1 . . . Parts Melted 3 | . 2 . 1 . . Heat Transferred 2714 | . 864 222 1628 . . Parts Sabotaged . | . . . . . . Parts Stolen . | . . . . . . Parts Stripped . | . . . . . . Power Chain Reactions 1 | . 1 . . . . Missiles Intercepted . | . . . . . . Alert | -11 -10 -10 -9 -8 -7 ------- Run | Jun Mat Min Mat Mat Fac Peak Influence 972 | 5 332 105 285 449 972 Initial 203 | . 3 6 . 50 203 Average 220 | 4 130 71 137 210 355 Maximum Alert Level 3 | . 1 . 1 2 3 Low Security (%) 58 | 100 74 100 76 46 31 Level 1 25 | . 25 . 23 48 28 Level 2 10 | . . . . 5 25 Level 3 5 | . . . . . 13 Level 4 . | . . . . . . Level 5 . | . . . . . . High Security . | . . . . . . Max Security . | . . . . . . Squads Dispatched 23 | . 2 1 3 2 15 Investigation 7 | . 2 . . . 5 Extermination 5 | . . . . . 5 Reinforcement 9 | . . . 3 2 4 Assault 2 | . . 1 . . 1 Garrison . | . . . . . . Intercept . | . . . . . . Searches Triggered . | . . . . . . Construction Impeded . | . . . . . . Haulers Reinforced 2 | . . . . . 2 Active Scanning Responses . | . . . . . . Cargo Convoy Interrupts 1 | . . . . . 1 Stealth | -11 -10 -10 -9 -8 -7 --------- Run | Jun Mat Min Mat Mat Fac Distress Signals 9 | . 2 . 4 2 1 Communications Jammed . | . . . . . . Distress Signals . | . . . . . . Times Spotted 171 | . 25 3 39 30 74 Peak Tracking Total 11 | . 6 4 4 9 11 Tactical Retreats 18 | . 2 1 2 1 12 Traps | -11 -10 -10 -9 -8 -7 ------- Run | Jun Mat Min Mat Mat Fac Traps Triggered 5 | . 1 . 2 . 2 Indirectly . | . . . . . . Trap Hack Attempts . | . . . . . . Triggered . | . . . . . . Disarmed . | . . . . . . Reprogrammed . | . . . . . . Reused . | . . . . . . Traps Extracted . | . . . . . . Installed . | . . . . . . Triggered 2 | . . . . . 2 Machines | -11 -10 -10 -9 -8 -7 ---------- Run | Jun Mat Min Mat Mat Fac Machines Disabled 7 | . . . 2 . 5 Max in Single Turn 4 | . . . 1 . 4 Garrison Access 1 | . . . . . 1 Machines Repaired . | . . . . . . Machines Sabotaged . | . . . . . . Overloaded Fab Kills . | . . . . . . Hacking | -11 -10 -10 -9 -8 -7 --------- Run | Jun Mat Min Mat Mat Fac Machines Accessed 24 | . 7 . 9 2 6 Terminals 20 | . 7 . 8 2 3 Fabricators 1 | . . . . . 1 Repair Stations 1 | . . . . . 1 Recycling Units . | . . . . . . Scanalyzers 1 | . . . 1 . . Garrison Access 1 | . . . . . 1 Total Hacks 70 | . 17 . 36 4 13 Successful 36 | . 8 . 22 1 5 Failed 33 | . 9 . 13 3 8 Catastrophic 12 | . 4 . 3 1 4 Database Lockouts 1 | . . . 1 . . Manual 38 | . 15 . 19 2 2 Terminals 56 | . 17 . 29 4 6 Fabricators 2 | . . . . . 2 Repair Stations 2 | . . . . . 2 Recycling Units . | . . . . . . Scanalyzers 7 | . . . 7 . . Garrison Access 3 | . . . . . 3 Terminal Hacks 21 | . 7 . 13 1 . Part Schematic 4 | . 1 . 3 . . Robot Analysis 2 | . 2 . . . . Prototype ID Bank 1 | . . . 1 . . Level Access Points 1 | . . . . 1 . Branch Access Points 2 | . 1 . 1 . . Emergency Access Points 1 | . . . 1 . . Terminal Index 1 | . . . 1 . . Alert Level 1 | . . . 1 . . Unreport Threat 2 | . . . 2 . . Locate Traps 3 | . 2 . 1 . . Hauler Manifests 3 | . 1 . 2 . . Fabricator Hacks 2 | . . . . . 2 Load Schematic 1 | . . . . . 1 Build 1 | . . . . . 1 Repair Station Hacks 2 | . . . . . 2 Scan Component 1 | . . . . . 1 Repair 1 | . . . . . 1 Recycling Unit Hacks . | . . . . . . Scanalyzer 6 | . . . 6 . . Insert Component 3 | . . . 3 . . Analyze 3 | . . . 3 . . Garrison Access Hacks . | . . . . . . Unauthorized Hacks 5 | . 1 . 3 . 1 Terminals 4 | . 1 . 3 . . Assimilate 1 | . 1 . . . . Botnet 3 | . . . 3 . . Fabricators . | . . . . . . Repair Stations . | . . . . . . Recycling Units . | . . . . . . Scanalyzers . | . . . . . . Garrison Access 1 | . . . . . 1 Jam 1 | . . . . . 1 Data Cores Recovered . | . . . . . . Used . | . . . . . . Hacking Detections 22 | . 6 . 8 2 6 Full Trace Events 4 | . 1 . . . 3 Feedback Events 1 | . . . . . 1 Hackware Fried 1 | . . . . . 1 Feedback Blocked . | . . . . . . Robot Schematics Acquired . | . . . . . . Robots Built . | . . . . . . Authchips . | . . . . . . Time . | . . . . . . Total Robot Build Rating . | . . . . . . Part Schematics Acquired 6 | . 1 . 5 . . Parts Built 1 | . . . . . 1 Authchips . | . . . . . . Time 36 | . . . . . 36 Total Part Build Rating 3 | . . . . . 3 Parts Repaired 1 | . . . . . 1 Time 38 | . . . . . 38 Parts Recycled . | . . . . . . Recycled Matter . | . . . . . . Retrieved Matter . | . . . . . . Retrieved Components . | . . . . . . Parts Scanalyzed 3 | . . . 3 . . Part Schematics Acquired 3 | . . . 3 . . Parts Damaged . | . . . . . . Bothacking | -11 -10 -10 -9 -8 -7 ------------ Run | Jun Mat Min Mat Mat Fac Used RIF Installer . | . . . . . . Robots Hacked . | . . . . . . Non-combat . | . . . . . . Combat . | . . . . . . Robot Hacks Applied . | . . . . . . Relay Couplers Released 4 | . . . . . 4 Programmers 4 | . . . . . 4 Fabnet Peak Effective % . | . . . . . . Robots Rewired . | . . . . . . Allies Hacked . | . . . . . . Hacks Repelled . | . . . . . . Allies | -11 -10 -10 -9 -8 -7 -------- Run | Jun Mat Min Mat Mat Fac Total Allies 4 | . 1 3 . . . Largest Group 3 | . 1 3 3 . . Highest-Rated Group 73 | . 10 73 73 . . Highest-Rated Ally 31 | . 10 31 31 . . Total Orders 1 | . 1 . . . . STAY 1 | . 1 . . . . Ally Attacks 26 | . . 8 18 . . Total Damage 377 | . . 145 232 . . Kills 4 | . . . 4 . . Allies Corrupted . | . . . . . . Allies Melted . | . . . . . . Intel | -11 -10 -10 -9 -8 -7 ------- Run | Jun Mat Min Mat Mat Fac Robot Analysis Total 2 | . 2 . . . . Derelict Logs Recovered 2 | . . 2 . . . Drone Launches . | . . . . . . Drone Recoveries . | . . . . . . Exploration | -11 -10 -10 -9 -8 -7 ------------- Run | Jun Mat Min Mat Mat Fac Turns Passed 9053 | 24 1249 974 2370 957 3479 Spaces Moved 4174 | 11 745 533 1078 378 1429 Core 203 | . . . . . 203 Treads 104 | . . . 104 . . Legs 10 | 10 . . . . . Wheels 3816 | 1 745 533 974 378 1185 Hover . | . . . . . . Flight 41 | . . . . . 41 Fastest Speed 40 | 100 100 175 175 190 40 Average Speed 184 | 118 143 175 190 200 201 Slowest Speed 255 | 120 175 175 240 210 255 Overloaded Moves . | . . . . . . Propulsion Burnouts . | . . . . . . Robots Hopped . | . . . . . . Cave-ins Triggered 1 | . . . . . 1 Exploration Rate (%) 56 | 3 95 85 72 41 44 Regions Visited 5 Branch Regions 1 Pre-discovered Areas 3 | . . 3 . . . Known Exits Taken 2 | . 1 . . 1 . Unknown Exits Taken 3 | 1 . 1 1 . . Scrap Searched 2 | . . 2 . . . Spaces Dug 9 | . . . . 1 8 Terrain Destroyed 139 | . 8 19 7 15 90 Melee . | . . . . . . Projectile 89 | . . . 7 15 67 AOE 50 | . 8 19 . . 23 Terrain Rammed . | . . . . . . Walls Destroyed . | . . . . . . Machines Disabled . | . . . . . . Actions | -11 -10 -10 -9 -8 -7 --------- Run | Jun Mat Min Mat Mat Fac Total 5022 | 15 866 556 1275 502 1808 Wait 246 | . 45 7 37 31 126 Move 4169 | 10 744 532 1077 377 1429 Hop . | . . . . . . Pick Up 95 | . 20 4 32 11 28 Fast Attach 12 | . 2 . 2 2 6 Attach 27 | . 1 . 6 2 18 Detach . | . . . . . . Swap 71 | 2 5 3 20 10 31 Drop 68 | . 11 . 35 13 9 Fire 323 | 3 38 10 66 54 152 Melee . | . . . . . . Ram 9 | . . . . 2 7 Kick . | . . . . . . Crush . | . . . . . . Escape Stasis . | . . . . . . Rewire 2 | . . . . . 2 Trap . | . . . . . . Miscellaneous . | . . . . . . Route ------- -11/Junkyard -10/Materials (discovered 4 exits: *Mat x3 / *Min) -10/Mines (discovered 2 exits: *Mat x2) -9/Materials (discovered 4 exits: *Mat x2 / Min / *Sto) -8/Materials (discovered 3 exits: *Fac x3) -7/Factory (discovered 4 exits: [*Fac x2] / [*Low x2]) History --------- Turn | Location | Event 10 | -11/Junkyard | Discovered new exit (range 3) 25 | -11/Junkyard | Entered Materials 58 | -10/Materials | Identified exit to Mines 66 | -10/Materials | Discovered new exit (range 15) 317 | -10/Materials | Build established: Mutant 378 | -10/Materials | Discovered new exit (range 3) 707 | -10/Materials | Discovered new exit (range 8) 1274 | -10/Materials | Entered Mines 1290 | -10/Mines | Learned location of Zion (-7) 1678 | -10/Mines | Met a Derelict testing a Signal Generator 1679 | -10/Mines | Discovered new exit (range 7) 1815 | -10/Mines | Learned location of Storage (-9) 1817 | -10/Mines | Discovered new exit (range 8) 2248 | -10/Mines | Entered Materials 2248 | -9/Materials | Accompanied by 3 allies 2248 | -9/Materials | Evolved 2 slots: Propulsion x1, Utility x1 2253 | -9/Materials | Led the pair of lost Derelicts to an unsafe place 2399 | -9/Materials | Identified exit to Mines 2399 | -9/Materials | Identified exit to Storage 2819 | -9/Materials | Build established: Scavenger-Mutant 3403 | -9/Materials | Discovered new exit (range 6) 3696 | -9/Materials | Central database locked down 3811 | -9/Materials | Discovered new exit (range 4) 4021 | -9/Materials | Build established: Mutant 4618 | -9/Materials | Entered another Materials area 4618 | -8/Materials | Evolved 2 slots: Propulsion x1, Utility x1 4736 | -8/Materials | Identified exit to Factory 5446 | -8/Materials | Destroyed 8 combat bots 5575 | -8/Materials | Entered Factory 5575 | -7/Factory | Evolved 2 slots: Utility x2 5814 | -7/Factory | Crushed by falling debris 5814 | -7/Factory | System corruption reached 10% 5845 | -7/Factory | Lost 4 parts (1p2u1w) 6529 | -7/Factory | Discovered new exit (range 12) 6955 | -7/Factory | Fabricated Hacking Suite? 7014 | -7/Factory | Cargo convoy interrupted 7122 | -7/Factory | Repaired Hrd. Medium Armor Plating 7214 | -7/Factory | Build established: Hacker-Mutant 7481 | -7/Factory | Discovered new exit (range 10) 7663 | -7/Factory | Build established: Mutant 8164 | -7/Factory | Hacking Suite fried by hacking feedback 8775 | -7/Factory | First assault squad dispatched 8932 | -7/Factory | Released all parts (8) 8961 | -7/Factory | Core integrity fell below 50% 8963 | -7/Factory | Lost 5 parts (2n2u1w) 9017 | -7/Factory | Core integrity fell below 20% 9050 | -7/Factory | Discovered new exit (range 11) 9053 | -7/Factory | Discovered new exit (range 15) 9054 | -7/Factory | Destroyed by G-47 Trooper with Particle Gun Last Messages --------------- 08951_ Slammed into K-01 Serf. 08963_ System corrupted: Matter fused (-10). 08963_ Slammed into P-60 Hacker. 08970_ Acquired 100 matter. 08979_ R-06 Scavenger inserts Wheel into recycling unit. 08997_ System corrupted: Matter fused (-6). 09012_ System corrupted: Energy discharge (-30). 09026_ O-16 Technician: "IFF HANDSHAKE FAILED. SECURING TERMINAL." 09029_ System corrupted: Matter fused (-5). 09030_ Connecting with Terminal... 09030_ ALERT: Suspicious activity at Terminal F004. Dispatching Investigation squad. 09035_ ALERT: Hostiles spotted, dispatching reinforcements to Terminal F008. 09036_ Acquired Xenon Bombardment Thruster. 09048_ Triggered Alarm Trap. 09048_ An alarm sounds. 09048_ ALERT: Alarm triggered, dispatching investigation squad. 09050_ EXIT=FOUND 09054_ Penetrated by Slug. 09054_ Terminal disabled. Map ----- +----------------------------------------------------+ | | | | | | | | | | | | | | | | | | | | | | | | | | | | | | | | | | | | | | | ?????????????????????????????????????????????????? | | ???????????? ??????######???????????????????????? | | ??????????? ##### ???????????????????????? | | ??????????? g ##############?????????? | | ?????????? H g g H ] #?????????? | | ??????????????g g#gg #?????????? | | ????????????????????# @; "" #?????????? | | ????????????????????###+### % "" ##+########### | | ??????????????????????????# "T # = / | | ??????????????????????????# """ + # | | ??????????????????????????# "" # " " " " " # | | ??????????????????????????# # " " " " " + | | ??????????????????????????## * # " " " " " # | | ???????????????????????????# # " " " " " # | | ???????????????????????????# """ # " " " " " # | | ???????????????????????????# """ # " " " " " # | | ???????????????????????????# """ # " " " " " # | | ???????????????????????????# # " " " " " + | | ???????????????????????????# """ # " " " " " # | | ???????????????????????????# """ # # | | ???????????????????????????# """ #########+#### | | ???????????????????????????# | | ???????????????????????????# "?" | | ???????????????????????????# "?" | | ???????????????????????????# "?" ## | | ???????????????????????????# ? " "" #? | | ???????????????????????????? ??" "R"" ##? | | ????????????????????????????????"" """ #?? | | ????????????????????????????????"" #?? | | ??????????????????????????????? #?? | | ??????????????????????????????? ####### #?? | +----------------------------------------------------+ Best States ------------- Heat Dissipation 53 Energy Generation 18 Energy Capacity 290 Matter Stores 300 Matter Capacity 300 Sight Range 16 Robot Scan Range 15 Terrain Scan Density 10 Armor Coverage 450 Resistance: KI 30 Weapon Cycling 15 Evasion (%) 62 Targeting Accuracy 8 Recoil Reduction 3 Matter Filtering 30 Offensive Hacking 30 Item Schematics ----------------- Huge Storage Unit | -10/Materials | Hacked Plasma Cutter | -9/Materials | Hacked Seismic Detector | -9/Materials | Scanalyzed Hacking Suite | -9/Materials | Scanalyzed Machine Analyzer | -9/Materials | Scanalyzed Hpw. Tractor Beam | -9/Materials | Hacked Robot Schematics ------------------ None Fabricated ------------ Hacking Suite | x1 | -7/Factory Alien Tech Used ----------------- None Achievements -------------- None Challenges ------------ None Game ------ Seed GrenadeFissionRefractor Manual? 0 Play Time 01:19:44 Cumulative 59.9 hours Start 2023.03.07 @ 16:18:48 End 2023.03.07 @ 17:49:27 Sessions 1 Manual Loads 0 Difficulty Rogue Special Mode None Game No. 51 Rogue 51 Adventurer 0 Explorer 0 Win Type - Total 0 Types 0/0/0/0/0/0/0/0/0 Lore% 34 Gallery% 43 Achievement% 39 Wizard Run 0 Options --------- ASCII 0 Keyboard 0 Movement Numpad Keybinds 0 Fullscreen 1 Font 12/Smallcaps Map View 83x54 Tactical HUD 1 Map Filters NONE Filters NONE Steam 1 RUN: 6db0bec6-b817-45c2-bf34-be9300afca13